bitfinex/quotes_ETHUSD_20240614
["timestamp","ask_amount","ask_price","bid_price","bid_amount"]
[1718344476893,0.7547294,3520.5,3519.7,0.698]
[1718344477415,0.0567294,3520.5,3519.6,2.82265]
[1718344477589,0.698,3520.5,3519.6,2.82265]
[1718344478482,0.0567294,3520.4,3519.6,2.82265]
[1718344478885,2.4985294,3520.4,3519.6,2.82265]
[1718344479114,0.698,3520.3,3519.6,2.3475]
[1718344479301,0.0567294,3520.2,3519.7,0.15773351]
[1718344483833,0.698,3520.1,3519.7,0.15773351]
[1718344484029,0.698,3519.9,3519.7,0.15773351]
[1718344484347,0.698,3519.9,3519.1,2.3738]
[1718344484348,0.0567294,3519.8,3519.1,2.3738]
[1718344485213,0.0567294,3519.8,3519.1,2.68098]
[1718344485450,0.0567294,3519.8,3519.1,2.3738]
[1718344486255,0.698,3519.7,3519.1,2.3738]
[1718344488459,0.698,3519.9,3519.1,2.3738]
[1718344488603,0.0567294,3519.8,3519.1,2.3738]
[1718344488803,0.0567294,3519.8,3519.2,0.05682532]
[1718344489027,0.0567294,3519.8,3519.1,2.3738]
[1718344489747,0.0567294,3519.8,3519.2,0.05682532]
[1718344490130,0.698,3519.9,3519.2,0.05682532]
[1718344490331,0.698,3520.0,3519.2,0.47048785]
[1718344490535,0.7547294,3520.0,3519.2,0.47048785]
[1718344490925,2.76145294,3520.4,3519.2,0.47048785]
[1718344490926,0.0567294,3520.3,3519.3,0.05682534]
[1718344491128,0.698,3520.2,3519.4,2.3099]
[1718344491334,0.7547294,3520.2,3519.4,2.3099]
[1718344492950,1.10634763,3520.2,3519.4,2.3099]
[1718344493961,0.698,3520.0,3519.4,2.3099]
[1718344494121,0.7547294,3520.0,3519.4,2.3099]
[1718344494323,0.7547294,3520.0,3519.5,0.15813171]
[1718344496364,0.698,3520.0,3519.5,0.15813171]
[1718344499352,0.35161823,3520.2,3519.5,0.05682351]
[1718344499561,0.698,3520.2,3519.6,0.15811866]
[1718344500743,0.0567294,3520.1,3519.6,0.15811866]
[1718344501139,0.0567294,3520.1,3519.4,2.3099]
[1718344501488,0.0567294,3520.1,3519.5,0.15813797]
[1718344506271,0.698,3520.0,3519.5,0.15813797]
[1718344506473,0.698,3519.8,3519.5,0.15813797]
[1718344506634,0.0567294,3519.7,3519.1,2.4527]
[1718344507033,0.0567294,3519.7,3519.2,0.1581294]
[1718344513379,0.698,3519.9,3519.2,0.1581294]
[1718344513574,0.0567294,3519.8,3519.2,0.1581294]
[1718344513773,0.0567294,3519.8,3519.1,2.4527]
[1718344514153,0.0567294,3519.8,3519.2,0.1581169]
[1718344514343,0.0567294,3519.8,3519.1,2.4527]
[1718344514540,0.0567294,3519.8,3519.3,0.15805067]
[1718344514762,0.0567294,3519.8,3519.2,0.698]
[1718344514962,0.7547294,3520.1,3519.2,0.31507]
[1718344515152,0.698,3519.9,3519.1,2.4527]
[1718344515477,0.0567294,3519.8,3519.2,0.1581169]
[1718344515640,0.0567294,3519.8,3519.1,2.4527]
[1718344515840,0.0567294,3519.8,3519.2,0.1581169]
[1718344516037,0.0567294,3519.8,3519.1,2.4527]
[1718344516274,0.0567294,3519.8,3519.2,0.1581169]
[1718344516481,0.0567294,3519.8,3519.1,2.4527]
[1718344516665,0.0567294,3519.8,3519.3,0.15805067]
[1718344516863,0.0567294,3519.8,3519.1,2.4527]
[1718344517266,0.0567294,3519.8,3519.2,0.1581169]
[1718344517472,0.0567294,3519.8,3519.1,2.4527]
[1718344517984,0.0567294,3519.8,3519.2,0.15817943]
[1718344518380,0.0567294,3520.1,3519.2,0.05682612]
[1718344518582,0.698,3520.0,3519.1,3.1507]
[1718344518881,0.698,3520.0,3519.2,0.15817943]
[1718344518882,0.0567294,3519.9,3519.2,0.15817943]
[1718344519086,0.0567294,3519.9,3519.1,3.1507]
[1718344519252,0.0567294,3519.9,3519.3,0.1581132]
[1718344519584,0.0567294,3519.9,3519.1,2.4527]
[1718344519784,0.0567294,3519.9,3519.4,0.15804698]
[1718344519983,0.0567294,3519.9,3519.1,2.4527]
[1718344520192,0.0567294,3519.9,3519.5,0.15798075]
[1718344520482,0.62292615,3520.3,3519.6,0.15791454]
[1718344520483,0.698,3520.0,3519.6,0.15791454]
[1718344520653,0.0567294,3519.9,3519.1,2.76777]
[1718344520852,0.0567294,3519.9,3519.2,0.15817943]
[1718344521051,6.23026148,3520.5,3519.3,3.1962717]
[1718344521052,3.23826148,3520.5,3519.3,3.1962717]
[1718344521254,3.23826148,3520.5,3519.6,0.698]
[1718344521590,3.23826148,3520.5,3519.7,2.63481712]
[1718344522696,3.23826148,3520.5,3519.8,0.05681449]
[1718344522892,3.23826148,3520.5,3519.9,2.93370768]
[1718344523096,0.698,3520.8,3520.0,0.05681223]
[1718344523297,0.698,3520.8,3520.0,0.21437126]
[1718344523298,0.0567294,3520.7,3520.0,0.21437126]
[1718344523756,0.698,3520.8,3520.0,0.21437126]
[1718344523956,0.0567294,3520.7,3520.0,0.21437126]
[1718344524596,0.698,3520.8,3520.0,0.21437126]
[1718344524767,0.0567294,3521.0,3520.0,1.44032367]
[1718344524768,0.7547294,3521.0,3520.0,1.44032367]
[1718344525165,0.0567294,3521.0,3520.2,0.698]
[1718344525484,0.0567294,3521.0,3520.3,0.15730105]
[1718344526063,0.698,3520.8,3520.3,0.15730105]
[1718344526383,0.698,3520.8,3520.1,2.4084]
[1718344526587,0.698,3520.8,3520.4,0.15719735]
[1718344526780,0.698,3520.8,3520.1,2.4084]
[1718344526989,0.698,3520.8,3520.5,0.15713117]
[1718344527190,0.698,3520.8,3520.1,2.4084]
[1718344527700,0.698,3520.8,3520.2,0.15732973]
[1718344528498,0.698,3521.0,3520.2,0.21413788]
[1718344530508,0.0567294,3520.9,3520.2,0.15732973]
[1718344531083,0.0567294,3520.9,3520.2,0.21413787]
[1718344531084,0.698,3520.8,3520.2,0.21413787]
[1718344532908,0.698,3521.0,3520.2,0.21413787]
[1718344533505,0.198,3521.0,3520.2,0.21413787]
[1718344533908,0.0567294,3521.3,3520.3,0.05680815]
[1718344534110,0.698,3521.2,3520.4,2.431]
[1718344534403,0.0567294,3521.5,3520.5,0.05680153]
[1718344534773,0.698,3521.3,3520.6,0.15676486]
[1718344536710,0.0567294,3521.5,3520.7,0.056803]
[1718344536905,0.698,3521.3,3520.8,2.4201]
[1718344537113,0.0567294,3521.7,3520.8,2.57666375]
[1718344537281,0.698,3521.5,3520.8,2.57666375]
[1718344539208,2.3904,3521.9,3520.9,0.05679928]
[1718344539376,0.698,3521.7,3521.0,0.40669082]
[1718344539571,0.698,3521.7,3521.0,0.56308786]
[1718344540014,0.7547294,3521.7,3521.0,0.56308786]
[1718344540218,0.7547294,3521.7,3521.1,2.2853]
[1718344540379,0.698,3521.7,3521.1,2.71916323]
[1718344540579,0.698,3521.7,3521.2,0.15626472]
[1718344541708,0.0567294,3521.6,3521.2,0.15626472]
[1718344542018,0.698,3521.5,3520.9,2.443]
[1718344542320,0.0567294,3521.4,3520.9,2.443]
[1718344542612,0.698,3521.5,3521.0,0.15620325]
[1718344543627,0.0567294,3522.0,3521.0,0.15620325]
[1718344543798,0.698,3521.5,3521.0,0.15620325]
[1718344543994,0.0567294,3521.4,3521.0,0.15620325]
[1718344544194,0.698,3521.5,3521.0,0.15620325]
[1718344544394,0.698,3521.7,3521.0,0.41612358]
[1718344544688,0.0567294,3521.6,3521.0,0.41612358]
[1718344546723,0.698,3521.7,3521.0,0.47292261]
[1718344548318,0.0567294,3522.0,3521.0,0.47292261]
[1718344548522,0.0567294,3522.0,3521.0,0.31671936]
[1718344548523,0.698,3521.7,3521.0,0.31671936]
[1718344552344,0.698,3521.7,3521.0,0.05679903]
[1718344552497,0.698,3521.7,3520.9,2.443]
[1718344553515,0.0567294,3522.0,3520.9,2.443]
[1718344553847,0.698,3521.6,3521.0,0.05679636]
[1718344554339,0.0567294,3522.0,3521.0,0.05679636]
[1718344554550,0.698,3521.7,3521.0,0.376576]
[1718344555931,0.28782784,3522.3,3521.7,2.2757]
[1718344556136,0.0567294,3522.4,3521.7,2.2757]
[1718344556327,0.698,3522.3,3521.8,0.15034082]
[1718344557531,0.0567294,3522.4,3521.7,2.2757]
[1718344557739,0.0567294,3522.4,3521.9,0.15016585]
[1718344558038,0.0567294,3522.4,3521.8,0.22757]
[1718344558398,0.0567294,3522.4,3521.9,0.15016585]
[1718344561121,0.7547294,3522.4,3521.9,0.15016585]
[1718344561428,2.4939,3523.0,3521.9,0.15016585]
[1718344561630,0.0567294,3522.9,3522.0,0.05678041]
[1718344561833,0.698,3522.8,3522.1,2.3165]
[1718344562147,0.698,3522.8,3522.1,2.4665336]
[1718344562331,0.7547294,3522.8,3522.1,2.4665336]
[1718344562857,3.23826148,3523.2,3522.2,0.05677924]
[1718344563053,3.90386552,3523.4,3522.3,5.40184514]
[1718344563225,3.23826148,3524.0,3522.3,5.40184514]
[1718344563226,5.58646148,3524.0,3522.5,2.2624]
[1718344563568,5.58646148,3524.0,3522.6,0.20647087]
[1718344563569,0.698,3523.4,3522.6,0.20647087]
[1718344563861,0.0567294,3523.9,3522.6,0.20647087]
[1718344564056,0.698,3523.4,3522.6,0.20647087]
[1718344564356,0.0567294,3523.9,3522.8,4.1329]
[1718344564531,0.0567294,3523.9,3522.8,2.4269]
[1718344564532,0.698,3523.6,3522.8,2.4269]
[1718344564732,0.698,3523.6,3522.9,0.14950475]
[1718344564733,0.0567294,3523.5,3522.9,0.14950475]
[1718344565329,0.0567294,3523.5,3522.9,0.20626968]
[1718344565528,0.698,3523.6,3522.9,0.20626968]
[1718344565732,0.0567294,3523.9,3523.0,0.698]
[1718344565911,0.7547294,3523.9,3523.1,0.05676208]
[1718344566112,0.7547294,3523.9,3523.2,0.14872835]
[1718344566424,3.93626148,3524.2,3523.4,2.3626]
[1718344566760,0.0567294,3524.1,3523.5,0.14853012]
[1718344567552,0.698,3524.2,3523.5,0.14853012]
[1718344567749,0.0567294,3524.5,3523.5,0.14853012]
[1718344567917,0.698,3524.2,3523.5,0.20528777]
[1718344568131,2.453,3524.6,3523.6,0.698]
[1718344568445,0.7547294,3524.5,3523.7,0.0567525]
[1718344568834,0.7547294,3524.5,3523.8,0.14751472]
[1718344569959,0.698,3524.3,3523.8,0.14751472]
[1718344570450,0.698,3524.1,3523.8,0.14751472]
[1718344570649,0.698,3523.9,3523.8,0.14751472]
[1718344570854,0.698,3524.1,3523.4,4.0686]
[1718344571158,0.698,3524.1,3523.4,5.50204514]
[1718344571339,0.698,3524.2,3523.5,0.14762285]
[1718344571853,0.0567294,3524.7,3523.5,0.14762285]
[1718344572063,0.698,3524.4,3523.6,0.05675347]
[1718344572552,0.698,3524.4,3523.7,0.14751246]
[1718344572751,0.698,3524.0,3523.7,0.14751246]
[1718344572956,0.698,3524.0,3523.4,2.3626]
[1718344573153,0.698,3524.0,3523.8,0.1474464]
[1718344573352,0.698,3524.0,3523.4,2.3626]
[1718344573560,0.698,3524.0,3523.9,0.14738034]
[1718344573769,0.698,3524.0,3523.4,2.3626]
[1718344574059,0.698,3524.0,3523.9,0.14738034]
[1718344574261,0.698,3524.0,3523.4,2.3626]
[1718344574420,0.698,3524.0,3523.9,0.14738034]
[1718344574620,0.698,3524.0,3523.4,2.3626]
[1718344574863,0.698,3524.0,3523.9,0.14738034]
[1718344575054,0.698,3524.0,3523.4,2.3626]
[1718344575279,0.698,3524.0,3523.9,0.14738034]
[1718344575864,6.0,3525.2,3523.9,0.14738034]
[1718344575865,2.3763,3525.7,3524.0,2.2744]
[1718344576042,0.698,3524.8,3524.1,0.05674572]
[1718344576246,0.698,3524.8,3524.0,2.2744]
[1718344576435,0.698,3524.8,3524.2,0.14719462]
[1718344576757,0.698,3524.8,3524.3,0.14712858]
[1718344576927,0.698,3524.8,3524.1,0.05674571]
[1718344577124,0.698,3524.8,3524.2,0.14719462]
[1718344577832,0.698,3524.8,3524.0,2.2744]
[1718344578032,0.698,3524.8,3524.3,0.14712858]
[1718344578234,0.698,3524.8,3524.0,2.88558451]
[1718344578435,0.698,3524.8,3524.4,0.14706254]
[1718344578631,0.698,3524.8,3524.0,2.2744]
[1718344578964,0.698,3524.1,3523.4,3.9882]
[1718344579171,0.698,3523.9,3523.5,1.14382]
[1718344579495,0.698,3523.9,3523.4,2.2822]
[1718344579496,0.698,3524.1,3523.4,2.2822]
[1718344580137,0.698,3524.1,3523.5,0.05675611]
[1718344580369,3.23826148,3524.7,3523.5,1.49020125]
[1718344580569,0.698,3524.3,3523.5,1.49020125]
[1718344581972,0.0567294,3524.6,3523.7,1.706]
[1718344582175,5.9592,3525.2,3523.8,1.96526693]
[1718344582176,0.698,3524.5,3523.8,1.96526693]
[1718344582341,0.698,3524.5,3523.8,1.49019132]
[1718344582536,0.698,3524.5,3523.8,1.43344514]
[1718344582974,1.7277294,3525.1,3523.8,1.43344514]
[1718344583186,1.7277294,3525.1,3523.9,0.05674619]
[1718344583665,0.0567294,3525.1,3524.0,3.85034514]
[1718344583841,0.0567294,3525.4,3524.1,2.32405351]
[1718344584042,3.0,3526.2,3524.4,4.1229]
[1718344584043,2.4148,3525.9,3524.4,4.1229]
[1718344584279,0.0567294,3525.8,3524.5,3.19617883]
[1718344584590,0.0567294,3525.7,3524.5,3.34275309]
[1718344584749,0.0567294,3526.1,3524.6,2.28196531]
[1718344584947,0.0567294,3526.1,3524.7,1.43344514]
[1718344585169,0.0567294,3526.1,3524.7,1.57988734]
[1718344585482,0.0567294,3526.1,3524.8,0.05673316]
[1718344585844,1.7277294,3526.1,3524.9,0.14629775]
[1718344586069,1.26425294,3526.0,3524.9,0.14629775]
[1718344586276,0.0567294,3525.9,3524.9,0.14629775]
[1718344587748,0.0567294,3525.9,3524.7,1.43344514]
[1718344587949,0.0567294,3525.9,3525.0,0.14600827]
[1718344588183,0.0567294,3525.9,3524.7,1.43344514]
[1718344588389,0.29919823,3525.8,3525.1,0.14592054]
[1718344588546,0.0567294,3525.7,3524.7,1.43344514]
[1718344588755,0.0567294,3525.7,3525.2,0.14585453]
[1718344588958,1.7277294,3525.7,3525.2,0.14585453]
[1718344589199,0.20269276,3525.6,3524.5,1.706]
[1718344589352,0.0567294,3525.5,3525.3,0.14556194]
[1718344589672,0.0567294,3525.5,3524.5,3.13944514]
[1718344590001,0.0567294,3525.5,3524.6,0.14602404]
[1718344590428,2.3243294,3525.5,3524.6,0.14602404]
[1718344590567,1.671,3525.3,3524.1,1.706]
[1718344590878,0.0567294,3525.2,3524.7,0.14597353]
[1718344591091,0.0567294,3525.2,3524.1,1.706]
[1718344591309,0.0567294,3525.2,3524.8,0.14594785]
[1718344591510,0.29967316,3525.1,3524.1,1.706]
[1718344591805,0.0567294,3525.0,3524.2,0.14634714]
[1718344594709,0.0567294,3525.2,3524.2,0.14634714]
[1718344599700,0.0567294,3525.2,3524.3,0.05674328]
[1718344599995,0.0567294,3525.2,3524.4,0.14629264]
[1718344604281,0.0567294,3525.2,3524.1,1.706]
[1718344604492,0.0567294,3525.2,3524.5,0.14618316]
[1718344604822,0.0567294,3525.2,3524.6,0.14611713]
[1718344604968,1.671,3525.2,3524.1,1.706]
[1718344605171,0.22950234,3525.1,3524.7,0.1460511]
[1718344605368,0.22950234,3525.1,3524.1,1.706]
[1718344605671,0.22950234,3525.1,3524.8,0.14598508]
[1718344605986,0.22950234,3525.1,3524.1,1.706]
[1718344606205,0.22950234,3525.1,3524.9,0.14591906]
[1718344606505,0.22950234,3525.1,3524.1,2.10915]
[1718344606869,0.22950234,3525.1,3524.2,0.14638127]
[1718344608016,2.3046,3525.0,3524.2,0.14638127]
[1718344608164,0.0567294,3524.9,3524.2,0.14638127]
[1718344611283,0.0567294,3524.9,3524.2,0.5641694]
[1718344613099,0.696,3524.8,3524.2,0.5641694]
[1718344614818,0.696,3524.6,3524.2,0.14638127]
[1718344615025,0.696,3524.6,3524.0,2.3255]
[1718344615229,0.696,3524.6,3524.3,0.14642074]
[1718344615393,0.696,3524.6,3524.0,3.75894514]
[1718344615730,0.696,3524.6,3524.4,0.14635471]
[1718344615877,0.696,3524.6,3524.1,0.54649451]
[1718344616079,0.696,3524.6,3524.5,0.14626695]
[1718344616300,0.696,3524.6,3524.0,3.75894514]
[1718344616502,0.696,3524.6,3524.5,0.14626695]
[1718344616715,2.4743,3524.5,3523.3,0.696]
[1718344616923,0.696,3524.3,3523.4,1.43344514]
[1718344617124,0.696,3524.3,3523.4,1.58045728]
[1718344617309,0.696,3524.0,3523.4,1.58045728]
[1718344617621,0.696,3524.0,3523.5,0.15804573]
[1718344617795,0.696,3524.0,3523.5,1.73847418]
[1718344618319,0.696,3523.7,3523.5,0.14698331]
[1718344618804,0.696,3523.7,3523.0,0.25592524]
[1718344619011,2.4058,3523.9,3523.6,0.14701347]
[1718344619210,2.4058,3523.9,3523.0,1.43344514]
[1718344619386,2.4058,3523.9,3523.7,0.14694741]
[1718344619587,2.4058,3523.9,3523.1,0.54604451]
[1718344619787,2.4058,3523.9,3523.8,0.14688135]
[1718344619987,2.4058,3523.9,3523.1,0.54604451]
[1718344620183,2.4058,3523.9,3523.8,0.14688135]
[1718344620380,2.4058,3523.9,3523.2,0.05675964]
[1718344620608,2.4058,3523.9,3523.8,0.14688135]
[1718344620821,2.4058,3523.9,3523.2,0.49248457]
[1718344621126,2.4058,3523.9,3523.8,0.14688135]
[1718344621421,4.90926148,3524.8,3523.4,1.706]
[1718344621724,0.0567294,3524.7,3523.5,1.84502514]
[1718344622120,0.0567294,3524.7,3523.7,2.313]
[1718344622298,0.0567294,3524.8,3523.8,1.43344514]
[1718344622507,0.0567294,3524.8,3523.9,0.5599769]
[1718344622682,0.0567294,3524.8,3524.0,1.43344514]
[1718344622905,0.0567294,3524.9,3524.0,1.5804272]
[1718344629232,0.0567294,3524.9,3524.0,0.14698206]
[1718344629534,0.0567294,3524.9,3523.7,2.313]
[1718344629705,0.23228294,3524.8,3524.1,0.14679806]
[1718344629888,0.0567294,3524.7,3523.7,3.74644514]
[1718344630087,0.0567294,3524.7,3524.2,0.14673201]
[1718344630317,0.0567294,3524.7,3523.7,3.74644514]
[1718344630525,0.0567294,3524.7,3524.3,0.14666597]
[1718344631027,0.0567294,3524.7,3524.4,0.14659993]
[1718344631224,0.0567294,3524.7,3523.7,3.74644514]
[1718344631538,0.0567294,3524.7,3524.5,0.1465339]
[1718344631696,2.4636,3525.5,3523.9,2.4916]
[1718344631894,0.0567294,3525.4,3524.0,1.49018793]
[1718344632115,0.0567294,3525.4,3524.1,0.56877879]
[1718344632409,0.0567294,3525.4,3524.2,0.05674278]
[1718344632605,0.0567294,3525.4,3524.2,0.20336615]
[1718344632811,0.0567294,3525.4,3524.3,0.05674279]
[1718344633015,0.0567294,3525.4,3524.4,0.14649129]
[1718344636434,0.0567294,3525.4,3524.5,2.40844105]
[1718344636627,0.0567294,3525.4,3524.6,0.53994188]
[1718344636825,0.0567294,3525.4,3524.6,0.59667971]
[1718344642403,4.0382,3525.8,3524.6,0.59667971]
[1718344642610,4.0382,3525.8,3524.7,1.43344514]
[1718344642611,0.0567294,3525.7,3524.7,1.43344514]
[1718344642809,0.0567294,3525.7,3524.8,0.05673237]
[1718344643042,0.0567294,3525.7,3524.9,0.37361194]
[1718344643755,0.0567294,3525.7,3525.0,0.14084005]
[1718344653145,0.696,3525.5,3525.0,2.58234005]
[1718344658553,0.696,3525.3,3525.0,2.58234005]
[1718344660646,0.696,3525.3,3525.0,0.14084005]
[1718344660850,0.696,3525.1,3525.0,0.14084005]
[1718344661054,0.696,3525.1,3524.5,2.3707]
[1718344661348,0.696,3525.1,3524.6,0.14101764]
[1718344662119,0.696,3524.9,3524.6,0.14101764]
[1718344662314,0.696,3524.9,3524.2,2.4828]
[1718344662519,0.696,3524.9,3524.3,0.38949574]
[1718344663029,0.0567294,3524.8,3524.3,0.38949574]
[1718344663230,0.696,3524.7,3524.3,0.38949574]
[1718344663440,0.696,3524.7,3524.3,0.14121574]
[1718344663743,0.696,3524.7,3524.0,3.0]
[1718344663952,0.696,3524.7,3524.4,0.14114971]
[1718344664126,0.696,3524.5,3523.9,2.4367]
[1718344664323,0.696,3524.5,3524.0,0.14141388]
[1718344665049,0.696,3524.7,3524.0,0.19816134]
[1718344666333,2.3891,3525.1,3524.0,0.19816134]
[1718344666334,0.696,3524.5,3524.0,0.14141388]
[1718344667262,0.696,3524.5,3524.0,0.19816134]
[1718344667753,0.696,3524.5,3524.0,0.53124747]
[1718344668969,0.0567294,3525.0,3524.0,0.53124747]
[1718344669263,0.696,3524.7,3524.0,0.53124747]
[1718344669556,0.0567294,3525.0,3524.0,0.53124747]
[1718344669758,0.696,3524.8,3524.0,0.53124747]
[1718344670062,0.696,3524.8,3524.1,0.36639475]
[1718344670355,0.696,3524.8,3524.2,0.14170503]
[1718344671286,2.001549,3524.9,3524.4,2.3198]
[1718344671485,2.001549,3524.9,3524.5,0.19824549]
[1718344671668,2.001549,3524.9,3524.5,0.14150692]
[1718344672251,0.696,3524.8,3524.5,0.14150692]
[1718344672791,2.001549,3524.9,3524.0,0.33308613]
[1718344672792,2.5221294,3524.7,3524.0,0.33308613]
[1718344672998,2.5221294,3524.7,3523.8,2.4296]
[1718344672999,2.5221294,3524.7,3524.1,0.27626861]
[1718344673146,0.696,3524.6,3524.1,0.27626861]
[1718344674381,0.696,3524.6,3524.2,0.14166486]
[1718344674853,2.001549,3524.9,3524.2,0.14166486]
[1718344675182,0.696,3524.7,3524.2,0.14166486]
[1718344676068,0.696,3524.5,3524.2,0.14166486]
[1718344676451,0.696,3524.5,3523.8,4.1356]
[1718344676651,0.696,3524.5,3522.7,1.1885496]
[1718344676652,0.696,3524.1,3523.9,0.141863]
[1718344676851,0.696,3524.1,3523.5,4.1792]
[1718344677079,0.696,3524.1,3523.6,1.57550632]
[1718344677277,0.696,3524.1,3523.6,2.15097695]
[1718344677482,0.696,3524.2,3523.6,2.15097695]
[1718344677986,0.696,3524.0,3523.6,1.57550632]
[1718344679552,0.696,3524.2,3523.6,1.57550632]
[1718344682989,0.696,3524.2,3523.7,2.4113]
[1718344683492,0.696,3524.2,3523.8,0.14197232]
[1718344683910,0.696,3524.0,3523.8,0.14197232]
[1718344684109,0.0567294,3523.9,3523.8,0.14197232]
[1718344684314,0.0567294,3523.9,3522.8,3.0]
[1718344684606,0.696,3523.6,3522.9,4.04311213]
[1718344684816,0.696,3523.6,3522.9,4.81702334]
[1718344685573,0.0567294,3523.5,3522.9,3.3835782]
[1718344686183,0.696,3523.2,3522.9,0.14256699]
[1718344686594,0.696,3523.2,3522.6,2.2815]
[1718344686802,0.696,3523.2,3523.0,0.1426616]
[1718344687013,0.696,3523.2,3522.6,2.2815]
[1718344687220,0.0567294,3523.5,3523.1,0.14274081]
[1718344687545,0.0567294,3523.5,3522.3,2.283]
[1718344687546,0.696,3523.2,3522.3,2.283]
[1718344687820,0.696,3522.8,3522.3,2.283]
[1718344687985,0.696,3522.8,3522.1,1.706]
[1718344688189,0.696,3522.8,3522.2,1.84128514]
[1718344688591,0.696,3523.0,3522.2,1.84128514]
[1718344688938,0.0567294,3523.1,3522.2,1.84128514]
[1718344689096,0.0567294,3523.3,3522.2,1.84128514]
[1718344689433,0.0567294,3523.3,3522.3,0.1432696]
[1718344689633,0.49663363,3523.3,3522.3,0.1432696]
[1718344689929,0.0567294,3523.2,3522.3,0.1432696]
[1718344690133,2.4224,3523.6,3522.4,5.50761847]
[1718344690319,0.0567294,3523.5,3522.5,0.14329507]
[1718344690519,3.0567294,3523.9,3522.6,0.05676742]
[1718344690698,1.26983294,3523.8,3522.7,0.14316287]
[1718344690904,0.0567294,3523.7,3522.7,0.14316287]
[1718344692814,0.0567294,3523.7,3522.8,0.05676817]
[1718344693341,0.0567294,3523.7,3522.9,0.14320068]
[1718344695017,0.77656234,3523.8,3523.0,2.54536527]
[1718344695211,0.0567294,3523.8,3523.0,2.54536527]
[1718344695563,0.0567294,3523.8,3523.1,0.1430685]
[1718344696437,0.0567294,3523.9,3523.1,0.1430685]
[1718344697428,1.7287294,3523.9,3523.1,0.1430685]
[1718344697814,1.7287294,3523.9,3522.7,1.43344514]
[1718344698014,0.41983294,3523.8,3523.2,0.14300242]
[1718344698211,0.0567294,3523.7,3522.8,0.05676528]
[1718344698449,0.0567294,3523.7,3523.3,0.14293634]
[1718344698751,0.0567294,3523.7,3523.4,0.14287027]
[1718344699118,0.0567294,3523.7,3522.7,1.43344514]
[1718344699319,0.21485623,3523.6,3522.8,0.14326677]
[1718344699559,0.0567294,3523.5,3522.8,0.14326677]
[1718344700519,2.3935,3523.4,3522.6,2.3317]
[1718344700736,0.32323796,3523.3,3522.7,0.14332977]
[1718344701447,0.32323796,3523.3,3522.3,2.321]
[1718344701648,0.0567294,3523.3,3522.8,0.1433348]
[1718344701847,0.0567294,3523.3,3522.3,2.321]
[1718344702031,0.55,3523.2,3522.9,0.14326871]
[1718344702227,0.0567294,3523.1,3522.3,2.321]
[1718344702452,0.0567294,3523.1,3523.0,0.14338506]
[1718344702614,0.90675234,3523.1,3522.3,2.321]
[1718344702952,0.35675234,3523.1,3522.3,2.321]
[1718344703316,3.20685623,3523.6,3522.3,2.321]
[1718344703317,0.21485623,3523.6,3522.4,1.63400477]
[1718344703516,0.0567294,3523.5,3522.4,1.63400477]
[1718344704521,0.0567294,3523.7,3522.4,1.63400477]
[1718344705344,0.0567294,3523.7,3522.5,2.43]
[1718344705521,0.0567294,3523.7,3522.6,0.2004178]
[1718344707261,0.0567294,3523.7,3522.7,2.285]
[1718344707432,0.0567294,3523.9,3522.8,0.44865225]
[1718344707754,0.55,3523.8,3522.8,0.20028321]
[1718344708052,0.0567294,3523.7,3522.8,0.20028321]
[1718344708625,0.0567294,3523.9,3523.0,2.2753]
[1718344708827,0.0567294,3523.9,3523.0,3.70874514]
[1718344709160,0.696,3523.6,3523.1,0.14331898]
[1718344709344,0.696,3523.6,3523.0,3.70874514]
[1718344709535,0.696,3523.6,3523.1,0.14331898]
[1718344709736,0.696,3523.6,3523.0,3.70874514]
[1718344709939,0.696,3523.4,3523.1,0.14331898]
[1718344710150,0.696,3523.4,3523.0,3.70874514]
[1718344710461,0.696,3523.4,3523.1,0.14331898]
[1718344710832,0.696,3523.4,3523.1,0.05676116]
[1718344711031,0.696,3523.4,3523.2,0.1432529]
[1718344711437,0.696,3523.6,3523.2,0.1432529]
[1718344712928,0.696,3523.6,3523.0,4.25021965]
[1718344713241,0.696,3523.6,3523.1,0.56815541]
[1718344714274,0.696,3523.6,3523.1,0.14313344]
[1718344714628,0.696,3523.4,3523.0,4.25021965]
[1718344714827,0.696,3523.4,3523.2,0.14304262]
[1718344715158,0.696,3523.4,3523.3,0.14297654]
[1718344715482,0.696,3523.4,3523.0,4.25021965]
[1718344715988,0.696,3523.4,3523.1,0.1431087]
[1718344716484,0.696,3523.4,3523.2,0.14304262]
[1718344716980,0.696,3523.4,3523.3,0.14297654]
[1718344717372,0.696,3523.4,3523.0,4.25021965]
[1718344717559,0.696,3523.4,3523.3,0.14297654]
[1718344717758,0.696,3523.4,3523.0,2.2753]
[1718344717956,0.696,3523.4,3523.1,0.1431087]
[1718344718277,0.696,3523.4,3523.0,2.2753]
[1718344718461,0.696,3523.4,3523.2,0.14306736]
[1718344718661,0.696,3523.4,3523.1,0.14313344]
[1718344718866,0.696,3523.4,3523.3,0.14300128]
[1718344719388,0.696,3523.4,3523.0,2.2753]
[1718344719686,0.696,3523.4,3523.3,0.14301365]
[1718344719885,0.696,3523.4,3522.5,2.3638]
[1718344720085,0.696,3523.4,3523.3,0.14301365]
[1718344720297,0.696,3523.4,3522.6,1.43344514]
[1718344720657,0.696,3523.4,3522.7,0.14342873]
[1718344721391,2.5494294,3523.3,3522.7,0.14342873]
[1718344721583,0.696,3522.8,3522.7,0.14342873]
[1718344721780,0.696,3522.8,3522.2,2.4069]
[1718344721981,0.696,3522.8,3522.7,0.14342873]
[1718344722196,0.696,3522.8,3522.2,3.84034514]
[1718344722490,0.696,3522.8,3522.7,0.14342873]
[1718344722886,0.696,3522.8,3522.2,2.4069]
[1718344723082,0.696,3522.6,3522.3,0.14369315]
[1718344723510,0.696,3522.8,3522.3,0.14369315]
[1718344724767,0.0567294,3522.7,3522.3,0.14369315]
[1718344725677,0.696,3522.8,3522.3,0.14369315]
[1718344726613,0.696,3522.6,3522.3,0.14369315]
[1718344728293,0.0567294,3522.5,3522.3,0.14369315]
[1718344728498,0.696,3522.4,3521.9,2.3003]
[1718344728694,0.696,3522.2,3522.0,0.14408324]